[Event "36th Balaton Open A 2018"]
[Site "Balatonlelle"]
[Date "2018.06.17"]
[Round "6"]
[White "Schmuck, Corentin"]
[Black "Gaal, Ede"]
[Result "1-0"]
[ECO "B23"]
[WhiteElo "1925"]
[BlackElo "2141"]
[Annotator "NA"]
[PlyCount "79"]
[EventDate "2018.06.12"]
[EventType "swiss"]
[EventCountry "HUN"]
[SourceTitle "playchess.com"]
[Source "ChessBase"]
[SourceQuality "1"]
[TimeControl "40/5400+30:1800+30"]

1. e4 {[%emt 0:11:54]} c5 {[%emt 0:00:58]} 2. Nc3 {[%emt 0:00:16]} e6 {[%emt 0:00:47]} 3. g3 {[%emt 0:02:20]} Nc6 {[%emt 0:00:31]} 4. Bg2 {[%emt 0:00:15]} g6 {[%emt 0:02:05]} 5. Nge2 {[%emt 0:03:30]} Bg7 {[%emt 0:01:08]} 6. O-O {[%emt 0:02:59]} d6 {[%emt 0:01:13]} 7. d3 {[%emt 0:02:20]} a6 {[%emt 0:00:51]} 8. a4 {[%emt 0:04:24]} Nge7 {[%emt 0:03:05]} 9. Be3 {[%emt 0:08:27]} Bd7 {[%emt 0:03:18]} 10. Qd2 {[%emt 0:08:55]} h5 {[%emt 0:05:13]} 11. h4 {[%emt 0:02:35]} Nd4 {[%emt 0:02:44]} 12. f4 Qc7 {[%emt 0:04:52]} 13. f5 {[%emt 0:17:18]} gxf5 {[%emt 0:01:25]} 14. exf5 {[%emt 0:00:41]} Nexf5 {[%emt 0:00:43]} 15. Bg5 {[%emt 0:05:56]} Be5 {[%emt 0:01:49]} 16. Nxd4 {[%emt 0:04:06]} Bxd4+ {[%emt 0:00:22]} 17. Kh2 {[%emt 0:00:08]} Bc6 {[%emt 0:12:38]} 18. Rxf5 {[%emt 0:08:43]} exf5 {[%emt 0:00:55]} 19. Re1+ {[%emt 0:01:03]} Be5 {[%emt 0:00:45]} 20. Nd5 {[%emt 0:05:07]} Bxd5 {[%emt 0:00:23]} 21. Bxd5 {[%emt 0:00:06]} Kd7 {[%emt 0:05:54]} 22. Qf2 {[%emt 0:02:09]} f4 {[%emt 0:05:29]} 23. gxf4 {[%emt 0:00:07]} Bd4 {[%emt 0:01:02]} 24. Re7+ {[%emt 0:00:14]} Kc8 {[%emt 0:01:04]} 25. Rxc7+ {[%emt 0:00:33]} Kxc7 {[%emt 0:00:09]} 26. Qf3 {[%emt 0:00:15]} f6 {[%emt 0:04:31]} 27. c3 {[%emt 0:03:49]} fxg5 {[%emt 0:00:18]} 28. cxd4 {[%emt 0:00:05]} g4 {[%emt 0:00:29]} 29. Qh1 {[%emt 0:00:21]} Rae8 {[%emt 0:00:23]} 30. Bxb7 {[%emt 0:00:50]} Re2+ {[%emt 0:05:36]} 31. Kg3 {[%emt 0:00:03]} Rhe8 {[%emt 0:00:31]} 32. Qc6+ {[%emt 0:00:47]} Kb8 {[%emt 0:00:34]} 33. f5 {[%emt 0:00:25]} R8e3+ {[%emt 0:04:43]} 34. Kf4 {[%emt 0:00:04]} Rxd3 {[%emt 0:02:03]} 35. a5 {[%emt 0:00:33]} Rxd4+ {[%emt 0:01:24]} 36. Kg5 {[%emt 0:00:08]} Re8 {[%emt 0:00:44]} 37. Qxe8+ {[%emt 0:00:30]} Kxb7 {[%emt 0:00:05]} 38. Qd7+ {[%emt 0:00:12]} Kb8 {[%emt 0:00:31]} 39. f6 {[%emt 0:00:38]} Rd5+ {[%emt 0:02:48]} 40. Kh6 {[%emt 0:00:00]} 1-0

[Event "36th Balaton Open A 2018"]
[Site "Balatonlelle"]
[Date "2018.06.17"]
[Round "6"]
[White "Farkas, Otto Jr"]
[Black "Ananya Rishi Gupta"]
[Result "0-1"]
[ECO "C83"]
[WhiteElo "1744"]
[BlackElo "1968"]
[Annotator "NA"]
[PlyCount "46"]
[EventDate "2018.06.12"]
[EventType "swiss"]
[EventCountry "HUN"]
[SourceTitle "playchess.com"]
[Source "ChessBase"]
[SourceQuality "1"]
[TimeControl "40/5400+30:1800+30"]

1. e4 {[%emt 0:03:10]} e5 {[%emt 0:01:14]} 2. Nf3 {[%emt 0:00:10]} Nc6 {[%emt 0:00:24]} 3. Bb5 {[%emt 0:00:07]} a6 {[%emt 0:00:27]} 4. Ba4 {[%emt 0:00:05]} Nf6 {[%emt 0:00:26]} 5. O-O {[%emt 0:00:08]} Nxe4 {[%emt 0:00:40]} 6. d4 {[%emt 0:00:40]} b5 {[%emt 0:00:13]} 7. Bb3 {[%emt 0:00:11]} d5 {[%emt 0:00:52]} 8. dxe5 {[%emt 0:02:46]} Be6 {[%emt 0:00:26]} 9. c3 {[%emt 0:04:06]} Be7 {[%emt 0:01:52]} 10. Nd4 {[%emt 0:01:17]} Nxe5 {[%emt 0:06:02]} 11. f4 {[%emt 0:06:09]} Nc4 {[%emt 0:11:49]} 12. Bxc4 {[%emt 0:00:14]} bxc4 $17 {[%emt 0:01:31]} 13. Nxe6 {[%emt 0:05:40]} fxe6 {[%emt 0:00:13]} 14. Qh5+ {[%emt 0:02:09]} g6 {[%emt 0:04:49]} 15. Qe5 {[%emt 0:00:15]} Kd7 {[%emt 0:03:13]} 16. Rd1 {[%emt 0:11:54]} Bc5+ {[%emt 0:03:38]} 17. Kf1 {[%emt 0:00:14]} Qh4 {[%emt 0:04:24]} 18. Rxd5+ {[%emt 0:03:54]} exd5 {[%emt 0:07:44]} 19. Qxd5+ {[%emt 0:00:07]} Bd6 {[%emt 0:03:17]} 20. g3 {[%emt 0:03:53]} Qxh2 {[%emt 0:06:28]} 21. Qxe4 {[%emt 0:01:51]} Rae8 {[%emt 0:00:18]} 22. Qf3 {[%emt 0:00:21]} Qh3+ {[%emt 0:00:51]} 23. Kf2 {[%emt 0:00:05]} Bc5+ {[%emt 0:00:08]} 0-1

[Event "36th Balaton Open A 2018"]
[Site "Balatonlelle"]
[Date "2018.06.18"]
[Round "7"]
[White "Nagy, Daniel"]
[Black "Sardy, Peter"]
[Result "1-0"]
[ECO "E64"]
[WhiteElo "2312"]
[BlackElo "2340"]
[Annotator "NA"]
[PlyCount "49"]
[EventDate "2018.06.12"]
[EventType "swiss"]
[EventCountry "HUN"]
[SourceTitle "playchess.com"]
[Source "ChessBase"]
[SourceQuality "1"]
[TimeControl "40/5400+30:1800+30"]

1. d4 {[%emt 0:00:07]} d6 {[%emt 0:00:43]} 2. c4 {[%emt 0:00:18]} g6 {[%emt 0:00:26]} 3. Nf3 {[%emt 0:00:06]} Bg7 {[%emt 0:00:33]} 4. g3 {[%emt 0:00:07]} Nf6 {[%emt 0:00:20]} 5. Bg2 {[%emt 0:00:05]} O-O {[%emt 0:00:07]} 6. Nc3 {[%emt 0:00:05]} c5 {[%emt 0:00:33]} 7. d5 {[%emt 0:01:16]} a6 {[%emt 0:02:50]} 8. Qd3 {[%emt 0:04:50]} ({White should play} 8. O-O $14) 8... Bg4 {[%emt 0:11:46]} (8... b5 $11) 9. h3 {[%emt 0:08:35]} Bxf3 {[%emt 0:00:26]} 10. exf3 {[%emt 0:00:02]} Nfd7 {[%emt 0:16:54]} 11. O-O {[%emt 0:03:10]} Qc7 $16 {[%emt 0:03:39]} 12. Re1 {[%emt 0:10:58]} Re8 {[%emt 0:00:55]} 13. f4 {[%emt 0:03:37]} b5 {[%emt 0:04:18]} 14. cxb5 {[%emt 0:02:04]} c4 {[%emt 0:00:12]} 15. Qe2 {[%emt 0:05:43]} Bxc3 {[%emt 0:01:05]} 16. bxc3 {[%emt 0:00:01]} axb5 {[%emt 0:00:06]} 17. Be3 {[%emt 0:00:40]} Nc5 {[%emt 0:01:12]} 18. h4 {[%emt 0:03:55]} Nbd7 {[%emt 0:02:28]} 19. h5 {[%emt 0:01:16]} Ra3 {[%emt 0:01:27]} 20. hxg6 {[%emt 0:00:56]} hxg6 {[%emt 0:00:05]} 21. Bd4 {[%emt 0:02:20]} Qa5 {[%emt 0:15:48]} 22. Qg4 {[%emt 0:05:10]} Nf8 {[%emt 0:02:26]} 23. Qh4 {[%emt 0:01:54]} f6 {[%emt 0:04:39]} 24. Bxf6 {[%emt 0:02:01]} Kf7 {[%emt 0:00:18]} 25. Bh8 {[%emt 0:05:14]} 1-0

[Event "36th Balaton Open A 2018"]
[Site "Balatonlelle"]
[Date "2018.06.18"]
[Round "7"]
[White "Haszon, David"]
[Black "Schmuck, Corentin"]
[Result "1-0"]
[ECO "C04"]
[WhiteElo "2246"]
[BlackElo "1925"]
[Annotator "NA"]
[PlyCount "149"]
[EventDate "2018.06.12"]
[EventType "swiss"]
[EventCountry "HUN"]
[SourceTitle "playchess.com"]
[Source "ChessBase"]
[SourceQuality "1"]
[TimeControl "40/5400+30:1800+30"]

1. e4 {[%emt 0:00:04]} e6 {[%emt 0:00:39]} 2. d4 {[%emt 0:00:14]} d5 {[%emt 0:00:10]} 3. Nd2 {[%emt 0:00:21]} Nc6 {[%emt 0:00:16]} 4. Ngf3 {[%emt 0:00:24]} Nf6 {[%emt 0:00:12]} 5. e5 {[%emt 0:00:51]} Nd7 {[%emt 0:00:18] Bd} 6. Bd3 {[%emt 0:00:24]} Nb4 {[%emt 0:01:44]} 7. Be2 {[%emt 0:00:28]} c5 {[%emt 0:00:53]} 8. c3 {[%emt 0:00:07]} Nc6 {[%emt 0:00:36]} 9. O-O {[%emt 0:00:16]} Be7 {[%emt 0:04:13] C04: French Tarrasch: 3...Nc6} (9... a5 10. a4 Be7 11. Nb1 O-O 12. Na3 cxd4 13. cxd4 f6 14. exf6 Nxf6 15. Nb5 Bd7 16. Re1 Ne4 17. Bd3 {1-0 (25) Nisipeanu,L (2687)-Richter,M (2505) Germany 2016}) 10. Re1 {[%emt 0:00:59]} O-O {[%emt 0:02:05]} 11. Nf1 {[%emt 0:03:42]} cxd4 {[%emt 0:03:14]} 12. cxd4 {[%emt 0:00:14]} f6 {[%emt 0:00:16]} 13. exf6 {[%emt 0:00:19]} Nxf6 {[%emt 0:01:36]} 14. a3 {[%emt 0:02:28]} Bd6 {[%emt 0:02:32]} 15. Bd3 {[%emt 0:01:26]} Qc7 {[%emt 0:03:50]} 16. Bg5 $146 {[%emt 0:04:22]} ({Predecessor:} 16. Be3 e5 17. dxe5 Nxe5 18. Nxe5 Bxe5 19. Rc1 Qf7 20. Bc5 Re8 21. Bb5 {½-½ (36) Kummerow,H (2337)-Messarius,J (2234) Herne 2012}) 16... e5 {[%emt 0:11:37]} 17. dxe5 {[%emt 0:00:42]} Nxe5 {[%emt 0:00:16]} 18. Rc1 {[%emt 0:02:28]} Nc6 {[%emt 0:13:39]} 19. Bb1 {[%emt 0:08:49]} Bf4 {[%emt 0:08:38]} 20. Bxf6 {[%emt 0:04:22]} Bxc1 {[%emt 0:00:33]} 21. Qxd5+ {[%emt 0:00:34]} Kh8 {[%emt 0:03:32]} 22. Bc3 {[%emt 0:00:51]} Bh6 {[%emt 0:05:23]} 23. Ng3 {[%emt 0:01:13]} Ne7 {[%emt 0:04:50]} 24. Qh5 {[%emt 0:04:39]} Ng8 {[%emt 0:02:19]} 25. Ne5 {[%emt 0:05:16]} Nf6 {[%emt 0:06:48]} 26. Qh4 {[%emt 0:08:18]} Be6 {[%emt 0:05:00]} 27. Ne4 {[%emt 0:11:52]} Nxe4 {[%emt 0:02:45]} 28. Rxe4 {[%emt 0:09:05]} Kg8 {[%emt 0:01:35]} 29. Ng4 {[%emt 0:05:44]} Bxg4 {[%emt 0:02:11]} 30. Qxh6 $2 {[%emt 0:02:14]} ({Schwächer ist} 30. Qxg4 Qf7 $14) (30. Rxg4 $18 Rfd8 31. g3 Rd1+ 32. Kg2 Rxb1 33. Qxh6 Qc6+ 34. Qxc6 bxc6 35. Rxg7+ Kf8 36. Rxh7) 30... Qxc3 {[%emt 0:04:59]} 31. bxc3 {[%emt 0:01:50]} gxh6 {[%emt 0:00:15]} 32. Rxg4+ {[%emt 0:00:08]} Kh8 {[%emt 0:01:26]} 33. Be4 {[%emt 0:02:50]} Rac8 {[%emt 0:00:46]} 34. Rg3 {[%emt 0:00:50]} b6 {[%emt 0:00:22]} 35. h3 {[%emt 0:01:14]} Rc7 {[%emt 0:00:10]} 36. Bd5 {[%emt 0:00:52]} Rc5 {[%emt 0:04:17]} 37. c4 {[%emt 0:02:19]} b5 {[%emt 0:00:36]} 38. Rg4 {[%emt 0:03:17]} h5 {[%emt 0:01:10]} 39. Rd4 {[%emt 0:01:11]} Rd8 {[%emt 0:01:44]} 40. Re4 {[%emt 0:00:00]} bxc4 {[%emt 0:01:07]} 41. Bxc4 {[%emt 0:00:36]} Rd7 {[%emt 0:04:47]} 42. a4 {[%emt 0:03:24]} Kg7 {[%emt 0:00:59]} 43. Bb5 {[%emt 0:01:41]} Rdc7 {[%emt 0:00:46]} 44. g3 {[%emt 0:02:03]} Rf5 {[%emt 0:04:07]} 45. Re2 $17 {[%emt 0:01:32]} h4 {[%emt 0:06:04]} 46. Kg2 {[%emt 0:00:56]} hxg3 {[%emt 0:00:59]} 47. fxg3 {[%emt 0:00:34]} Rfc5 {[%emt 0:00:45]} 48. Kf3 {[%emt 0:01:23]} Rf7+ {[%emt 0:02:23]} 49. Kg4 {[%emt 0:01:49]} Rc3 {[%emt 0:01:48]} 50. Kh4 {[%emt 0:08:51]} Rff3 {[%emt 0:03:54]} 51. Re7+ {[%emt 0:03:17]} Rf7 {[%emt 0:00:24]} 52. Re4 {[%emt 0:01:54]} Rf6 {[%emt 0:00:59]} 53. Be2 {[%emt 0:02:40]} Rh6+ {[%emt 0:01:08]} 54. Bh5 {[%emt 0:00:15]} Rc7 {[%emt 0:00:27]} 55. g4 {[%emt 0:00:19]} Rd6 {[%emt 0:00:32]} 56. Re5 {[%emt 0:03:31]} Rd3 {[%emt 0:01:01]} 57. Rg5+ {[%emt 0:00:49]} Kf6 {[%emt 0:00:14]} 58. Ra5 {[%emt 0:00:37]} h6 {[%emt 0:02:21]} 59. Ra6+ {[%emt 0:00:12]} Kg7 {[%emt 0:00:09]} 60. Bg6 {[%emt 0:01:13]} Ra3 {[%emt 0:01:00]} 61. Bf5 {[%emt 0:00:25]} Re3 {[%emt 0:01:34]} 62. Rg6+ {[%emt 0:00:19]} Kf8 {[%emt 0:01:02]} 63. Rxh6 {[%emt 0:00:21]} Rg7 {[%emt 0:00:59]} 64. Rf6+ {[%emt 0:00:31]} Ke7 {[%emt 0:00:21]} 65. Ra6 {[%emt 0:00:33]} Kf8 {[%emt 0:00:07]} 66. g5 {[%emt 0:01:02]} Re1 {[%emt 0:01:03]} 67. Kh5 {[%emt 0:01:27]} Rf1 {[%emt 0:00:44]} 68. Ra5 {[%emt 0:01:05]} Rg1 {[%emt 0:00:26]} 69. h4 {[%emt 0:00:49]} Rg3 {[%emt 0:01:09]} 70. Rb5 {[%emt 0:00:58]} Ra3 {[%emt 0:00:43]} 71. Rb8+ {[%emt 0:01:14]} Ke7 {[%emt 0:00:06]} 72. Kh6 {[%emt 0:01:25]} Rf7 {[%emt 0:00:06]} 73. Kg6 {[%emt 0:00:21]} Rxf5 {[%emt 0:02:24]} 74. Kxf5 {[%emt 0:00:21]} Rxa4 {[%emt 0:00:07]} 75. h5 {[%emt 0:00:49]} 1-0

[Event "36th Balaton Open A 2018"]
[Site "Balatonlelle"]
[Date "2018.06.18"]
[Round "7"]
[White "Terbe, Julianna"]
[Black "Forgacs, Jozsef"]
[Result "0-1"]
[ECO "A06"]
[WhiteElo "2242"]
[BlackElo "2199"]
[Annotator "NA"]
[PlyCount "67"]
[EventDate "2018.06.12"]
[EventType "swiss"]
[EventCountry "HUN"]
[SourceTitle "playchess.com"]
[Source "ChessBase"]
[SourceQuality "1"]
[TimeControl "40/5400+30:1800+30"]

1. Nf3 {[%emt 0:00:05]} d5 {[%emt 0:01:21]} 2. g3 {[%emt 0:00:12]} c6 {[%emt 0:00:08]} 3. Bg2 {[%emt 0:00:11]} Bg4 {[%emt 0:00:13]} 4. O-O {[%emt 0:00:09]} Nd7 {[%emt 0:00:10]} 5. d3 {[%emt 0:03:32]} e5 {[%emt 0:01:13]} 6. c4 {[%emt 0:03:07]} dxc4 {[%emt 0:00:42]} 7. dxc4 {[%emt 0:00:18]} Qc7 {[%emt 0:04:09]} 8. Nc3 {[%emt 0:00:39]} Ngf6 {[%emt 0:01:58]} 9. h3 {[%emt 0:04:58]} Bh5 {[%emt 0:07:40]} 10. Nh4 {[%emt 0:02:48] LiveBook: 5 Games} Bg6 {[%emt 0:13:08]} 11. Be3 {[%emt 0:02:33]} Bc5 $14 {[%emt 0:02:37]} 12. Qc1 {[%emt 0:09:44]} Be7 {[%emt 0:07:33]} 13. Nxg6 {[%emt 0:01:46]} hxg6 {[%emt 0:00:09]} 14. a3 {[%emt 0:01:43]} Nc5 {[%emt 0:05:22]} 15. Qc2 {[%emt 0:01:31]} Ne6 {[%emt 0:00:16]} 16. Rfd1 {[%emt 0:01:15]} Nd7 {[%emt 0:04:04]} 17. b4 {[%emt 0:04:03]} f5 {[%emt 0:03:09]} 18. Rac1 {[%emt 0:04:40]} Ng5 {[%emt 0:09:17]} 19. h4 {[%emt 0:05:45]} Nf7 {[%emt 0:01:13]} 20. Bd2 {[%emt 0:07:39]} Nf6 {[%emt 0:01:28]} 21. Qa4 {[%emt 0:02:34]} O-O {[%emt 0:04:15]} 22. c5 {[%emt 0:02:02]} a6 {[%emt 0:02:47]} 23. Qb3 {[%emt 0:01:33]} Rae8 {[%emt 0:04:07]} 24. Be1 {[%emt 0:05:40]} Kh8 {[%emt 0:02:01]} 25. Na4 {[%emt 0:03:42]} Bd8 {[%emt 0:06:32]} 26. Nb6 {[%emt 0:01:03]} Qe7 {[%emt 0:05:41]} 27. Nc4 {[%emt 0:00:43]} Bc7 {[%emt 0:00:15]} 28. a4 {[%emt 0:00:21]} f4 {[%emt 0:02:13]} 29. Kh1 {[%emt 0:09:58]} e4 {[%emt 0:00:39]} 30. b5 {[%emt 0:03:24]} axb5 {[%emt 0:00:13]} 31. axb5 {[%emt 0:00:05]} e3 {[%emt 0:00:37]} 32. bxc6 {[%emt 0:01:20]} Ng4 {[%emt 0:03:10]} 33. Bf3 {[%emt 0:04:42]} exf2 {[%emt 0:00:29]} 34. Rd7 {[%emt 0:03:31]} 0-1

[Event "36th Balaton Open A 2018"]
[Site "Balatonlelle"]
[Date "2018.06.18"]
[Round "7"]
[White "Suta, Andraz"]
[Black "Trajber, Daniel"]
[Result "1-0"]
[ECO "B87"]
[WhiteElo "2239"]
[BlackElo "2022"]
[Annotator "NA"]
[PlyCount "93"]
[EventDate "2018.06.12"]
[EventType "swiss"]
[EventCountry "HUN"]
[SourceTitle "playchess.com"]
[Source "ChessBase"]
[SourceQuality "1"]
[TimeControl "40/5400+30:1800+30"]

1. e4 {[%emt 0:00:02]} c5 {[%emt 0:00:49]} 2. Nf3 {[%emt 0:00:05]} d6 {[%emt 0:00:37]} 3. d4 {[%emt 0:00:04]} cxd4 {[%emt 0:00:21]} 4. Nxd4 {[%emt 0:00:02]} Nf6 {[%emt 0:00:28]} 5. Nc3 {[%emt 0:00:02]} a6 {[%emt 0:00:30]} 6. Bc4 {[%emt 0:00:05]} e6 {[%emt 0:00:34]} 7. Bb3 {[%emt 0:00:04]} b5 {[%emt 0:00:30]} 8. O-O {[%emt 0:00:23]} Be7 {[%emt 0:02:01]} 9. a3 {[%emt 0:10:41]} O-O {[%emt 0:02:16]} 10. Qd3 {[%emt 0:00:29] B87: Sicilian Scheveningen/Najdorf: 6 Bc4, with early ...b5} (10. f4 Bb7 11. f5 e5 12. Nde2 Nbd7 13. Ng3 h6 14. Kh1 Rc8 15. Be3 Re8 16. Qf3 Bf8 17. Rad1 Qa5 18. Bd2 Qc7 19. Bc1 Bc6 20. Nh5 a5 21. Nxf6+ Nxf6 {1-0 (30) Anwuli,D (2365)-Arun Prasad,S (2509) Dubai 2016}) 10... Bd7 $146 {[%emt 0:04:10]} ({Predecessor:} 10... Qb6 11. Rd1 Nbd7 12. Qg3 Ne5 13. Be3 Qb7 14. f3 Rb8 15. a4 Nc4 16. Bxc4 bxc4 17. Rab1 Bd7 18. Bh6 Ne8 {0-1 (18) Denzin,M (2009)-Sherwood,H (2331) ICCF email 2017}) 11. f4 {[%emt 0:25:18]} Nc6 {[%emt 0:04:53]} 12. Kh1 {[%emt 0:07:32]} Qc7 {[%emt 0:05:11]} 13. Nxc6 {[%emt 0:07:46]} Bxc6 {[%emt 0:01:36]} 14. f5 {[%emt 0:00:08]} e5 {[%emt 0:03:43]} 15. Bg5 {[%emt 0:03:04]} h6 {[%emt 0:10:56]} 16. Bxf6 {[%emt 0:00:22]} Bxf6 {[%emt 0:01:01]} 17. Bd5 {[%emt 0:00:56]} Rac8 {[%emt 0:02:12]} 18. Bxc6 {[%emt 0:05:12]} Qxc6 {[%emt 0:00:24]} 19. Rf2 {[%emt 0:07:57]} Qc5 {[%emt 0:07:09]} 20. Re2 {[%emt 0:01:41]} Qd4 {[%emt 0:08:26]} 21. Qg3 {[%emt 0:02:03]} Kh7 {[%emt 0:05:07]} 22. Rb1 {[%emt 0:01:41]} Bd8 {[%emt 0:05:19]} 23. Nd5 {[%emt 0:02:13]} Qc4 {[%emt 0:06:48]} 24. Rbe1 {[%emt 0:01:04]} Qd4 {[%emt 0:05:52]} 25. c3 {[%emt 0:00:23]} Qa7 {[%emt 0:00:08]} 26. Re3 {[%emt 0:07:20]} Bg5 {[%emt 0:06:54]} 27. Rf3 {[%emt 0:00:17]} Rc4 {[%emt 0:01:52]} 28. Qg4 {[%emt 0:10:49]} Qb7 {[%emt 0:04:22]} 29. Rd3 {[%emt 0:03:15]} g6 {[%emt 0:03:34]} 30. b3 {[%emt 0:01:15]} Rc6 {[%emt 0:01:30]} 31. Rh3 {[%emt 0:01:14]} Kg7 {[%emt 0:01:47]} 32. Rf1 {[%emt 0:00:32]} f6 {[%emt 0:01:19]} 33. fxg6 {[%emt 0:00:23]} Qc8 {[%emt 0:01:14]} 34. Qh5 {[%emt 0:00:21]} Qe8 {[%emt 0:00:39]} 35. Rf5 {[%emt 0:00:23]} Rh8 {[%emt 0:01:09]} 36. Rhf3 {[%emt 0:00:07]} Qe6 {[%emt 0:00:47]} 37. Qg4 {[%emt 0:00:59]} h5 {[%emt 0:00:36]} 38. Qg3 {[%emt 0:00:36]} Rh6 {[%emt 0:01:06]} 39. Rxg5 {[%emt 0:01:23]} fxg5 {[%emt 0:00:27]} 40. Rf7+ {[%emt 0:00:00]} Kxg6 $18 {[%emt 0:00:42]} 41. Rf5 {[%emt 0:17:12]} g4 {[%emt 0:04:20]} 42. Qe3 {[%emt 0:01:48]} Kg7 {[%emt 0:05:04]} 43. Qa7+ {[%emt 0:00:16]} Kg6 {[%emt 0:08:23]} 44. Ne7+ {[%emt 0:00:43]} Kg7 {[%emt 0:00:43]} 45. Nxc6+ {[%emt 0:00:09]} Kg6 {[%emt 0:00:06]} 46. Ne7+ {[%emt 0:00:31]} Kg7 {[%emt 0:00:18]} 47. Nd5+ {[%emt 0:03:46]} 1-0

[Event "36th Balaton Open A 2018"]
[Site "Balatonlelle"]
[Date "2018.06.18"]
[Round "7"]
[White "Ronce, Nathan"]
[Black "Metaxasz, Vaszilisz"]
[Result "1-0"]
[ECO "B26"]
[WhiteElo "2210"]
[BlackElo "2047"]
[Annotator "NA"]
[PlyCount "83"]
[EventDate "2018.06.12"]
[EventType "swiss"]
[EventCountry "HUN"]
[SourceTitle "playchess.com"]
[Source "ChessBase"]
[SourceQuality "1"]
[TimeControl "40/5400+30:1800+30"]

1. e4 {[%emt 0:00:03]} d6 {[%emt 0:06:09]} 2. Nc3 {[%emt 0:01:16]} g6 {[%emt 0:00:29]} 3. g3 {[%emt 0:06:20]} Bg7 {[%emt 0:02:16]} 4. Bg2 {[%emt 0:00:43]} c5 {[%emt 0:01:18]} 5. d3 {[%emt 0:00:11]} Nc6 {[%emt 0:00:08]} 6. Be3 {[%emt 0:00:10]} Bd7 {[%emt 0:04:29]} 7. Qd2 {[%emt 0:00:56]} Rb8 {[%emt 0:00:26] LiveBook: 3 Games} 8. Nge2 {[%emt 0:01:22] B26: Closed Sicilian: 3 g3, lines with early Be3} b5 {[%emt 0:05:17]} 9. O-O {[%emt 0:01:05]} h5 $146 {[%emt 0:01:02]} ({Predecessor:} 9... b4 10. Nd1 Qc8 11. f4 Nh6 12. Kh1 f5 13. e5 dxe5 14. Bxc5 a5 15. c3 Ng4 {1-0 (40) Schwarz,D (2216)-Mezentsev,V (2497) Reno 2006}) 10. f3 {[%emt 0:12:33]} Nf6 {[%emt 0:02:15]} 11. h3 {[%emt 0:18:32]} b4 {[%emt 0:11:02]} 12. Nd1 {[%emt 0:02:51]} a5 {[%emt 0:00:26]} 13. f4 Qc8 {[%emt 0:08:23]} 14. Kh2 {[%emt 0:12:17]} e5 {[%emt 0:03:19]} 15. fxe5 {[%emt 0:08:56]} Nxe5 {[%emt 0:01:07]} 16. Bg5 {[%emt 0:00:42]} Nh7 {[%emt 0:01:26]} 17. Bh6 {[%emt 0:04:03]} O-O {[%emt 0:00:45]} 18. Bxg7 {[%emt 0:00:33]} Kxg7 {[%emt 0:00:03]} 19. Ne3 {[%emt 0:01:17]} Be6 {[%emt 0:05:57]} 20. Nf4 {[%emt 0:01:41]} Qd7 {[%emt 0:01:12]} 21. Rf2 {[%emt 0:00:17]} Qe7 {[%emt 0:14:42]} 22. Nfd5 {[%emt 0:12:53]} Qg5 {[%emt 0:00:39]} 23. Rf4 {[%emt 0:03:40]} Qh6 {[%emt 0:05:42]} 24. Raf1 {[%emt 0:01:22]} Ng5 {[%emt 0:02:18]} 25. h4 {[%emt 0:03:12]} Nh7 {[%emt 0:00:14]} 26. Bh3 {[%emt 0:00:33]} Rbe8 {[%emt 0:07:17]} 27. c3 {[%emt 0:01:35]} g5 {[%emt 0:04:10]} 28. R4f2 {[%emt 0:02:48]} Ng4+ {[%emt 0:02:45]} 29. Bxg4 {[%emt 0:00:14]} hxg4 {[%emt 0:00:12]} 30. Nf5+ {[%emt 0:01:22]} Bxf5 {[%emt 0:00:08]} 31. Rxf5 {[%emt 0:00:21]} Re6 {[%emt 0:02:36]} 32. Nc7 {[%emt 0:01:16]} Re7 {[%emt 0:04:50]} 33. Nb5 {[%emt 0:00:28]} Re6 {[%emt 0:00:12]} 34. Kg2 {[%emt 0:00:25]} gxh4 {[%emt 0:00:02]} 35. Qxh6+ {[%emt 0:00:08]} Rxh6 {[%emt 0:00:35]} 36. gxh4 {[%emt 0:00:10]} bxc3 {[%emt 0:01:04]} 37. bxc3 {[%emt 0:00:05]} Rxh4 {[%emt 0:00:36]} 38. Nxd6 {[%emt 0:00:10]} Rh3 {[%emt 0:01:35]} 39. Rd5 {[%emt 0:02:18]} Nf6 {[%emt 0:01:54]} (39... Rb8 $16 {was necessary.}) 40. Rg5+ {[%emt 0:00:00]} ({Weaker is} 40. Rxc5 Rxd3 41. e5 Nh5 $11) 40... Kh6 {[%emt 0:00:11]} 41. Rgf5 $18 {[%emt 0:05:27]} Kg6 {[%emt 0:01:38]} 42. Rxf6+ {[%emt 0:00:30]} 1-0